bitfinex/quotes_BTCUSD_20250303
["timestamp","ask_amount","ask_price","bid_price","bid_amount"]
[1741016363827,0.00197,90974.0,90973.0,0.47942485]
[1741016364036,0.002089,90974.0,90973.0,1.18993407]
[1741016364240,0.002089,90974.0,90973.0,2.26333163]
[1741016364437,0.0003398,90988.0,90987.0,0.464858]
[1741016364593,0.0003398,90988.0,90987.0,1.11380807]
[1741016366459,0.0003398,90988.0,90987.0,1.11280807]
[1741016366641,0.0003398,90988.0,90987.0,0.93440922]
[1741016366844,0.0003398,90988.0,90987.0,1.09926722]
[1741016367023,0.0003398,90988.0,90987.0,1.11380807]
[1741016367359,0.0013398,90988.0,90987.0,1.12080807]
[1741016367566,0.00201,91000.0,90991.0,0.21539234]
[1741016367761,0.00201,91000.0,90999.0,0.464836]
[1741016368215,0.00201,91000.0,90999.0,0.463836]
[1741016369315,0.00201,91000.0,90999.0,0.47503203]
[1741016369675,0.00201,91000.0,90999.0,0.48957288]
[1741016370531,0.00201,91000.0,90999.0,1.1226423]
[1741016370946,5e-07,91003.0,91002.0,0.714631]
[1741016371148,0.00011946,91003.0,91002.0,1.89750808]
[1741016371359,0.00011946,91003.0,91002.0,1.79750808]
[1741016371820,0.0003398,91022.0,91021.0,0.464797]
[1741016372030,0.0003398,91022.0,91021.0,1.11240727]
[1741016372437,0.0003398,91022.0,91021.0,1.12072739]
[1741016373291,0.0003398,91022.0,91021.0,1.09786642]
[1741016373519,0.01756443,91022.0,91021.0,1.09786642]
[1741016373774,0.01756443,91022.0,91021.0,1.11240727]
[1741016374006,0.01756443,91022.0,91021.0,1.10486642]
[1741016374233,0.01756443,91022.0,91021.0,0.22239234]
[1741016374930,0.01756443,91022.0,91021.0,0.21539234]
[1741016374931,0.18235943,91022.0,91021.0,0.21539234]
[1741016375178,0.0230401,91022.0,91021.0,0.21539234]
[1741016375439,0.0230401,91022.0,91021.0,0.22239234]
[1741016375631,0.01756443,91022.0,91021.0,0.38718934]
[1741016375856,0.0003398,91022.0,91021.0,0.38718934]
[1741016376069,0.0003398,91022.0,91021.0,0.81573985]
[1741016376288,0.0003398,91022.0,91021.0,0.80486642]
[1741016376490,0.0003398,91022.0,91021.0,0.79786642]
[1741016376691,0.0003398,91022.0,91021.0,1.09786642]
[1741016376914,0.0013398,91022.0,91021.0,1.10486642]
[1741016377128,0.0013398,91022.0,91021.0,1.1303202]
[1741016377457,0.0003398,91022.0,91021.0,1.10877935]
[1741016377665,0.0013398,91022.0,91021.0,0.22239234]
[1741016377868,0.0013398,91022.0,91021.0,0.21539234]
[1741016378063,0.17159789,91022.0,91021.0,0.21539234]
[1741016378273,0.1671348,91022.0,91021.0,0.22239234]
[1741016378469,0.17069644,91022.0,91021.0,0.21539234]
[1741016379392,0.00590144,91022.0,91021.0,0.21539234]
[1741016379677,0.00590144,91022.0,91021.0,0.18839234]
[1741016379835,0.0013398,91022.0,91021.0,0.19539234]
[1741016380036,0.00590144,91022.0,91021.0,0.18839234]
[1741016380234,0.1651348,91022.0,91021.0,0.18839234]
[1741016380604,0.17069644,91022.0,91021.0,0.19339234]
[1741016380939,0.29379644,91022.0,91021.0,0.005]
[1741016381137,0.12900144,91022.0,90997.0,0.18839234]
[1741016381381,0.3,91020.0,90997.0,0.18839234]
[1741016381684,0.12900144,91022.0,90997.0,0.18839234]
[1741016381685,0.29383644,91022.0,91021.0,0.005]
[1741016382664,0.1,91021.0,90998.0,0.18839234]
[1741016382939,0.164853,90990.0,90989.0,0.18839234]
[1741016383146,0.164853,90990.0,90969.0,0.41767708]
[1741016383147,0.543906,90989.0,90988.0,0.00011896]
[1741016383288,0.4,90986.0,90953.0,0.41779608]
[1741016383488,0.00556164,90985.0,90953.0,0.41767708]
[1741016383730,0.164876,90978.0,90953.0,0.41767708]
[1741016383994,0.22537764,90985.0,90953.0,0.41767708]
[1741016384196,0.21998875,90990.0,90953.0,0.41767708]
[1741016384466,0.00556164,90984.0,90954.0,0.3]
[1741016384606,0.164864,90985.0,90953.0,0.41779608]
[1741016384811,0.09733638,90990.0,90956.0,0.3]
[1741016385012,0.00556164,90984.0,90983.0,0.164865]
[1741016385219,0.01094347,90994.0,90983.0,0.18839234]
[1741016385418,0.02280049,90984.0,90983.0,0.18839234]
[1741016385622,0.01723885,90984.0,90983.0,0.35325734]
[1741016385819,0.075,91001.0,90984.0,0.164864]
[1741016386021,0.01723726,91004.0,90986.0,0.3]
[1741016386278,0.0001701,90990.0,90988.0,0.31454085]
[1741016386448,0.0011701,90990.0,90989.0,0.464855]
[1741016386651,0.0001701,90990.0,90989.0,0.464855]
[1741016387668,0.0011701,90990.0,90989.0,0.468855]
[1741016387871,0.0011701,90990.0,90989.0,1.07492442]
[1741016388071,0.0001701,90990.0,90989.0,1.07092442]
[1741016388898,0.0001701,90990.0,90989.0,0.60606942]
[1741016389823,0.0001701,90990.0,90989.0,0.57906942]
[1741016390190,0.0011701,90990.0,90989.0,0.74892442]
[1741016390398,0.0001701,90990.0,90989.0,1.05846527]
[1741016390606,0.0001701,90990.0,90989.0,1.06246527]
[1741016390984,0.0001701,90990.0,90989.0,1.05846527]
[1741016391161,0.0011701,90990.0,90989.0,1.05846527]
[1741016392519,0.0001701,90990.0,90989.0,1.05846527]
[1741016392657,0.0002101,90990.0,90989.0,1.05846527]
[1741016393466,0.0012101,90990.0,90989.0,1.06346527]
[1741016393670,0.0012101,90990.0,90989.0,1.04392442]
[1741016393997,0.0022101,90990.0,90989.0,1.04892442]
[1741016394206,0.1670631,90990.0,90989.0,0.58406942]
[1741016394405,0.1670631,90990.0,90989.0,0.005]
[1741016394621,0.164885,90973.0,90961.0,0.17939234]
[1741016394818,0.219819,90984.0,90961.0,0.17939234]
[1741016395203,0.33032112,90990.0,90961.0,0.17951134]
[1741016395317,0.164872,90980.0,90966.0,0.164896]
[1741016395554,0.164867,90983.0,90961.0,0.17951134]
[1741016395778,0.19317412,90990.0,90989.0,0.005]
[1741016395974,0.31208173,90990.0,90989.0,0.005]
[1741016396182,0.3,90989.0,90978.0,0.164874]
[1741016396379,0.464856,90989.0,90966.0,0.18339234]
[1741016396606,0.164894,90967.0,90966.0,0.18339234]
[1741016396804,0.164934,90945.0,90944.0,0.17939234]
[1741016397010,0.3,90966.0,90944.0,0.17951134]
[1741016397212,0.219867,90964.0,90944.0,0.17951134]
[1741016397416,0.00192418,90963.0,90944.0,0.17951134]
[1741016398017,0.00192418,90965.0,90944.0,0.17951134]
[1741016398231,0.164934,90945.0,90944.0,0.17951134]
[1741016398425,0.542034,90945.0,90944.0,0.000119]
[1741016398626,0.1,90937.0,90902.0,0.17939234]
[1741016398830,0.164976,90922.0,90921.0,0.00056694]
[1741016399041,0.219953,90929.0,90921.0,0.00056694]
[1741016399241,0.13308,90932.0,90921.0,0.00056694]
[1741016399445,0.164976,90922.0,90921.0,0.00056694]
[1741016399624,0.1,90943.0,90921.0,0.00056694]
[1741016399824,0.08922729,90945.0,90929.0,0.219951]
[1741016399825,0.001,90945.0,90929.0,0.219951]
[1741016400070,0.001,90945.0,90922.0,0.17939234]
[1741016400509,0.1,90935.0,90922.0,0.17939234]
[1741016400758,0.01202467,90944.0,90921.0,0.00056694]
[1741016400759,0.664976,90922.0,90921.0,0.00056694]
[1741016401060,0.564992,90913.0,90912.0,0.00143306]
[1741016401272,0.564992,90913.0,90912.0,0.00155216]
[1741016401491,0.00832763,90923.0,90912.0,0.00155216]
[1741016401693,0.13304,90938.0,90912.0,0.1809445]
[1741016401929,0.1,90932.0,90912.0,0.1809445]
[1741016402141,0.164992,90913.0,90912.0,0.00155216]
[1741016402343,0.164992,90913.0,90886.0,0.002]
[1741016402344,0.56502,90898.0,90886.0,0.002]
[1741016402544,0.56504,90887.0,90886.0,0.002]
[1741016402763,0.46504,90887.0,90886.0,0.002]
[1741016402934,0.46504,90887.0,90859.0,0.002]
[1741016402935,0.165087,90861.0,90859.0,0.002]
[1741016403157,0.00192622,90860.0,90859.0,0.002]
[1741016403354,0.00192622,90860.0,90859.0,0.0021191]
[1741016403355,0.40192622,90860.0,90859.0,0.0021191]
[1741016403516,0.4,90860.0,90859.0,0.0021191]
[1741016404362,0.32359611,90861.0,90859.0,0.0021191]
[1741016404363,0.02546911,90861.0,90859.0,0.0021191]
[1741016404676,0.3,90860.0,90859.0,0.0021191]
[1741016404855,0.3,90860.0,90833.0,0.222183]
[1741016405024,0.01726316,90861.0,90835.0,0.27661782]
[1741016405225,0.01726316,90861.0,90854.0,0.165099]
[1741016405426,0.01726316,90861.0,90848.0,0.220145]
[1741016405627,0.01726316,90861.0,90835.0,0.27661782]
[1741016405835,0.00192616,90860.0,90835.0,0.17951159]
[1741016406039,0.1,90859.0,90835.0,0.17951159]
[1741016406200,0.1,90855.0,90835.0,0.17951159]
[1741016406402,0.3,90857.0,90835.0,0.00011925]
[1741016406403,0.3,90836.0,90835.0,0.00011925]
[1741016406619,0.4,90836.0,90835.0,0.00011925]
[1741016406813,0.265131,90837.0,90835.0,0.00011925]
[1741016407014,0.21646784,90836.0,90835.0,0.00011925]
[1741016407453,0.2,90831.0,90830.0,0.0001698]
[1741016407661,0.8145693,90831.0,90830.0,0.0001698]
[1741016407867,0.81264185,90831.0,90830.0,0.0001698]
[1741016408540,0.67972385,90808.0,90807.0,0.002]
[1741016408748,0.16523,90782.0,90772.0,0.0138805]
[1741016408949,0.133,90784.0,90772.0,0.0138805]
[1741016409125,0.165229,90783.0,90772.0,0.0138805]
[1741016409332,0.133,90784.0,90778.0,0.165236]
[1741016409535,0.46523,90782.0,90772.0,0.0138805]
[1741016409851,0.16529,90750.0,90744.0,0.0001698]
[1741016410050,0.01077991,90761.0,90748.0,0.22039]
[1741016410238,0.00192832,90775.0,90747.0,0.0003978]
[1741016410437,0.13296,90774.0,90747.0,0.39107488]
[1741016410642,0.13296,90774.0,90773.0,0.165247]
[1741016410930,0.00825232,90784.0,90748.0,0.56129012]
[1741016411133,0.13296,90794.0,90750.0,0.31454085]
[1741016411330,0.00192784,90793.0,90752.0,0.31454085]
[1741016411534,0.01727809,90793.0,90754.0,0.01454085]
[1741016411778,0.01727809,90793.0,90791.0,0.165213]
[1741016412043,0.01727809,90793.0,90777.0,0.220319]
[1741016412226,0.01727809,90793.0,90791.0,0.165213]
[1741016412544,0.01727809,90793.0,90791.0,0.55589008]
[1741016413106,0.01727809,90793.0,90791.0,0.39067708]
[1741016413107,0.0173967,90793.0,90791.0,0.39067708]
[1741016413366,0.0173967,90793.0,90792.0,0.165212]
[1741016413540,0.0173967,90793.0,90791.0,0.39067708]
[1741016414161,0.0173967,90793.0,90792.0,0.17061304]
[1741016414375,0.01620524,90793.0,90792.0,0.87583097]
[1741016414803,0.00011861,90793.0,90792.0,0.87583097]
[1741016415162,0.16532861,90793.0,90792.0,0.56129012]
[1741016415363,0.16532861,90793.0,90792.0,0.17061304]
[1741016415567,0.00011861,90793.0,90792.0,0.17061304]
[1741016418398,0.00011861,90793.0,90792.0,0.33582504]
[1741016419056,0.00011861,90793.0,90792.0,0.17061304]
[1741016419498,0.00011861,90793.0,90792.0,0.33582504]
[1741016421224,0.00011861,90793.0,90792.0,0.33599564]
[1741016421428,0.00011861,90793.0,90792.0,0.74121357]
[1741016421655,0.00045981,90793.0,90792.0,0.72667272]
[1741016421786,0.00045981,90793.0,90792.0,1.04121357]
[1741016422197,0.00045981,90793.0,90792.0,0.86146072]
[1741016422415,0.00045981,90793.0,90792.0,1.02667272]
[1741016423264,0.00045981,90793.0,90792.0,1.04121357]
[1741016423464,0.00045981,90793.0,90792.0,1.15741357]
[1741016423673,8.1e-07,90793.0,90792.0,1.15741357]
[1741016423932,0.00201,90842.0,90801.0,0.3]
[1741016424146,0.00201,90842.0,90803.0,0.3]
[1741016424365,0.01738959,90841.0,90806.0,0.220249]
[1741016424569,0.165128,90839.0,90802.0,0.56129012]
[1741016424718,0.01738959,90841.0,90816.0,0.3]
[1741016424921,0.01738959,90841.0,90840.0,0.165125]
[1741016425133,0.01738959,90841.0,90833.0,0.220182]
[1741016425505,0.01738959,90841.0,90817.0,0.31454085]
[1741016425680,0.01738959,90841.0,90817.0,0.3]
[1741016425855,0.220211,90822.0,90818.0,0.17061304]
[1741016426098,0.165163,90819.0,90818.0,0.17061304]
[1741016426333,0.465163,90819.0,90818.0,0.17061304]
[1741016426626,0.22028514,90841.0,90818.0,0.17061304]
[1741016426790,0.165147,90829.0,90818.0,0.17061304]
[1741016426993,0.0080944,90832.0,90818.0,0.17061304]
[1741016427210,0.00204605,90841.0,90818.0,0.17061304]
[1741016427407,0.00011914,90841.0,90818.0,0.17061304]
[1741016427829,0.00850704,90841.0,90818.0,0.17061304]
[1741016427977,0.00011914,90841.0,90831.0,0.165141]
[1741016428177,0.00011914,90841.0,90832.0,0.17061304]
[1741016428610,0.00204564,90841.0,90832.0,0.17061304]
[1741016428825,0.00011914,90841.0,90832.0,0.17061304]
[1741016429259,0.00011914,90841.0,90840.0,0.165125]
[1741016429458,0.00011914,90841.0,90840.0,0.33573804]
[1741016429661,0.00011914,90841.0,90840.0,0.32327889]
[1741016429866,0.16524214,90841.0,90840.0,0.17061304]
[1741016430708,0.00011914,90841.0,90840.0,0.17061304]
[1741016431127,0.16524214,90841.0,90840.0,0.17061304]
[1741016431597,0.00011914,90841.0,90822.0,0.17061304]
[1741016431855,0.165151,90826.0,90812.0,0.17061304]
[1741016432077,0.220169,90839.0,90812.0,0.17061304]
[1741016432371,0.3,90840.0,90812.0,0.17061304]
[1741016432595,0.01726822,90823.0,90822.0,0.165158]
[1741016432811,0.00011914,90841.0,90840.0,0.165125]
[1741016433028,0.00046034,90841.0,90840.0,0.72641512]
[1741016433267,0.00046034,90841.0,90840.0,0.74095597]
[1741016433685,0.00046034,90841.0,90840.0,0.56129012]
[1741016433960,0.00046034,90841.0,90840.0,0.72641512]
[1741016434530,0.00046034,90841.0,90840.0,0.56129012]
[1741016434735,0.01147219,90841.0,90840.0,0.17061304]
[1741016434935,0.01147219,90841.0,90814.0,0.17061304]
[1741016435135,0.16516,90821.0,90814.0,0.17061304]
[1741016435364,0.00192679,90840.0,90814.0,0.17061304]
[1741016435563,0.00046034,90841.0,90816.0,0.3]
[1741016435765,0.00046034,90841.0,90839.0,0.165126]
[1741016435965,0.00046034,90841.0,90840.0,0.33573804]
[1741016436177,0.16558334,90841.0,90840.0,0.17061304]
[1741016436810,0.00046034,90841.0,90840.0,0.17061304]
[1741016437027,0.00046034,90841.0,90840.0,1.02641512]
[1741016437229,0.10201,90895.0,90840.0,1.02641512]
[1741016437230,0.01103708,90891.0,90868.0,0.465074]
[1741016437407,0.00201,90895.0,90868.0,0.465074]
[1741016437408,0.00201,90895.0,90868.0,1.04090497]
[1741016437579,0.00201,90895.0,90883.0,0.465047]
[1741016437909,0.00201,90895.0,90883.0,1.04087797]
[1741016438136,0.00201,90895.0,90894.0,0.465027]
[1741016438338,0.00201,90895.0,90894.0,1.09075797]
[1741016438339,0.00212912,90895.0,90894.0,1.09075797]
[1741016438744,0.00212912,90895.0,90894.0,1.07621712]
[1741016439150,0.00212912,90895.0,90894.0,0.77621712]
[1741016439348,0.00212912,90895.0,90894.0,0.61119012]
[1741016439550,0.00212912,90895.0,90894.0,0.77621712]
[1741016439791,0.00212912,90895.0,90894.0,0.72631712]
[1741016441230,0.01938079,90895.0,90894.0,0.72631712]
[1741016441635,0.01938079,90895.0,90894.0,0.56129012]
[1741016442054,0.01938079,90895.0,90894.0,0.17061304]
[1741016442665,0.02376588,90895.0,90894.0,0.17061304]
[1741016442800,0.18440579,90895.0,90894.0,0.17061304]
[1741016443008,0.01938079,90895.0,90894.0,0.17061304]
[1741016443220,0.02376588,90895.0,90894.0,0.17061304]
[1741016443426,0.01942079,90895.0,90894.0,0.17061304]
[1741016444487,0.01942079,90895.0,90894.0,0.33564004]
[1741016444644,0.01942079,90895.0,90894.0,0.17061304]
[1741016444917,0.18444579,90895.0,90894.0,0.17061304]
[1741016445322,0.02380588,90895.0,90873.0,0.17061304]
[1741016445535,0.00192559,90894.0,90873.0,0.17061304]
[1741016445667,0.3,90894.0,90873.0,0.17061304]
[1741016445867,0.00192567,90893.0,90873.0,0.17061304]
[1741016446165,0.220041,90892.0,90873.0,0.17061304]
[1741016446348,0.165089,90860.0,90859.0,0.17061304]
[1741016446497,0.165087,90862.0,90848.0,0.17061304]
[1741016446707,0.00438509,90860.0,90859.0,0.16509]
[1741016446933,0.13216,90886.0,90859.0,0.56129012]
[1741016447109,0.13216,90886.0,90860.0,0.56129012]
[1741016447478,4e-05,90893.0,90863.0,0.01454085]
[1741016447708,4e-05,90893.0,90871.0,0.165067]
[1741016447915,0.0001191,90886.0,90863.0,0.23465185]
[1741016448115,0.0001191,90886.0,90867.0,0.01454085]
[1741016448316,0.0001191,90886.0,90885.0,0.165043]
[1741016448519,0.0001191,90886.0,90885.0,0.33565604]
[1741016448996,0.0001191,90886.0,90885.0,0.17061304]
[1741016449222,0.0001191,90886.0,90885.0,0.33565604]
[1741016449624,0.0001191,90886.0,90885.0,0.17061304]
[1741016450165,0.0001591,90886.0,90885.0,0.33565604]
[1741016450368,0.0001591,90886.0,90885.0,1.08957397]
[1741016450592,0.00227191,90895.0,90894.0,0.465027]
[1741016450815,0.00227191,90895.0,90894.0,0.47956785]
[1741016451639,0.00201,90947.0,90912.0,0.464994]
[1741016451840,0.01724876,90918.0,90912.0,1.04082497]
[1741016452312,0.00201,90947.0,90912.0,1.08732497]
[1741016452517,0.01724665,90931.0,90912.0,1.08732497]
[1741016452720,0.01724665,90931.0,90921.0,0.3]
[1741016452934,0.00045908,90929.0,90928.0,0.47950585]
[1741016453101,0.00201,90947.0,90931.0,0.1]
[1741016453277,0.00201,90947.0,90944.0,0.545036]
[1741016453763,0.09780659,90956.0,90953.0,0.319892]
[1741016453965,0.09780659,90956.0,90955.0,0.47945685]
[1741016454173,0.09780659,90956.0,90955.0,0.67945685]
[1741016454376,0.09780659,90956.0,90955.0,0.6476417]
[1741016454542,0.09780659,90956.0,90955.0,0.59058395]
[1741016454749,0.09780659,90956.0,90955.0,0.61852023]
[1741016454964,0.09780659,90956.0,90955.0,0.71852023]
[1741016455178,0.09780659,90956.0,90955.0,0.51852023]
[1741016455381,0.09780659,90956.0,90955.0,0.49058395]
[1741016455733,0.00393357,91000.0,90972.0,0.3]
[1741016455945,0.00240701,90974.0,90973.0,0.86083104]
[1741016456156,0.00240701,90974.0,90973.0,1.04025589]
[1741016456365,0.00240701,90974.0,90973.0,0.86083104]
[1741016456608,0.00240701,90974.0,90973.0,1.02571504]
[1741016456817,0.00240701,90974.0,90973.0,0.17015396]
[1741016458011,0.0067863,90974.0,90948.0,0.56083104]
[1741016458237,0.00240701,90974.0,90949.0,0.56083104]
[1741016458415,0.00240701,90974.0,90950.0,0.56083104]
[1741016458611,0.0001704,90956.0,90951.0,0.56083104]
[1741016458857,0.0001704,90956.0,90955.0,0.164916]
[1741016459029,0.0001704,90956.0,90955.0,0.72574704]
[1741016459240,0.0001704,90956.0,90955.0,0.86083104]
[1741016459891,0.0001704,90956.0,90955.0,1.04028789]
[1741016460837,0.0001704,90956.0,90955.0,0.87537189]
[1741016461048,0.0001704,90956.0,90955.0,1.04028789]
[1741016461302,0.00244701,90974.0,90956.0,0.31454085]
[1741016461465,0.00244701,90974.0,90973.0,0.47942485]
[1741016461706,0.00244701,90974.0,90973.0,1.04025589]
[1741016462440,0.0003402,90984.0,90983.0,0.464865]
[1741016462650,0.0004592,90984.0,90983.0,0.464865]
[1741016463080,0.0004592,90984.0,90983.0,0.47940585]
[1741016463982,0.0004592,90984.0,90983.0,1.02324903]
[1741016463983,0.00036425,90984.0,90983.0,1.02324903]
[1741016464134,0.00036425,90984.0,90983.0,1.03778988]
[1741016464337,0.00036425,90984.0,90983.0,1.02324903]
[1741016464578,0.00036425,90984.0,90983.0,0.55838403]
[1741016464930,0.00036425,90984.0,90983.0,0.16770695]
[1741016465126,0.16962206,90984.0,90983.0,0.16770695]
[1741016465363,0.00475806,90984.0,90958.0,0.16770695]
[1741016465562,0.00475806,90984.0,90959.0,0.16770695]
[1741016465563,0.00479806,90984.0,90959.0,0.16770695]
[1741016465887,0.00040425,90984.0,90959.0,0.16770695]
[1741016466240,0.00192343,90983.0,90959.0,0.16770695]
[1741016466461,0.164886,90972.0,90959.0,0.16770695]
[1741016466672,0.00192343,90983.0,90959.0,0.16770695]
[1741016466673,0.219823,90982.0,90959.0,0.16770695]
[1741016466877,0.00436825,90971.0,90938.0,0.55838403]
[1741016467081,0.3,90960.0,90938.0,0.16770695]
[1741016467308,0.1,90962.0,90919.0,0.00819016]
[1741016467309,0.164978,90921.0,90919.0,0.00819016]
[1741016467522,0.00435964,90920.0,90919.0,0.00819016]
[1741016467730,0.00435964,90920.0,90900.0,0.16770695]
[1741016467937,0.00435964,90920.0,90918.0,0.164983]
[1741016468203,0.266351,90971.0,90902.0,0.220017]
[1741016468405,0.0019246,90958.0,90902.0,0.3]
[1741016468621,0.164922,90952.0,90933.0,0.164956]
[1741016468840,0.3,90958.0,90908.0,0.31454085]
[1741016469045,0.00433218,90951.0,90911.0,0.3]
[1741016469251,0.08128525,90984.0,90928.0,0.01454085]
[1741016469382,0.08128525,90984.0,90920.0,0.37075176]
[1741016469383,0.00190884,90983.0,90929.0,0.55838403]
[1741016469593,0.1,90980.0,90929.0,0.55834403]
[1741016469794,0.01454085,90973.0,90929.0,0.16770695]
[1741016470038,0.1,90983.0,90929.0,0.16770695]
[1741016470039,0.00192429,90972.0,90929.0,0.16770695]
[1741016470204,0.3,90971.0,90929.0,0.16770695]
[1741016470558,0.3,90971.0,90912.0,0.39063708]
[1741016470559,0.1,90954.0,90912.0,0.39063708]
[1741016470782,0.05211667,90970.0,90911.0,0.16770695]
[1741016470783,0.164992,90913.0,90911.0,0.16770695]
[1741016470987,0.3,90930.0,90895.0,0.16770695]
[1741016471195,0.00433218,90912.0,90899.0,0.220023]
[1741016471357,0.00433218,90912.0,90895.0,0.16770695]
[1741016471358,0.00433218,90912.0,90900.0,0.165016]
[1741016471565,0.00433218,90912.0,90895.0,0.16770695]
[1741016471767,0.00433218,90912.0,90899.0,0.165018]
[1741016471977,0.00433218,90912.0,90896.0,0.22003]
[1741016472169,0.00433218,90912.0,90911.0,0.164996]
[1741016472337,0.00433218,90912.0,90896.0,0.01454085]
[1741016472533,0.00433218,90912.0,90905.0,0.165006]
[1741016472737,0.00433218,90912.0,90906.0,0.16770695]
[1741016473351,0.165002,90908.0,90906.0,0.16770695]
[1741016473553,0.465011,90903.0,90886.0,0.002]
[1741016473851,0.22002,90901.0,90886.0,0.002]
[1741016474059,0.00192563,90900.0,90886.0,0.00211908]
[1741016474213,0.165038,90888.0,90886.0,0.00211908]
[1741016474413,0.3,90908.0,90886.0,0.00211908]
[1741016474619,0.00428391,90887.0,90886.0,0.00211908]
[1741016474855,0.01725481,90905.0,90886.0,0.00211908]
[1741016475237,0.00428391,90904.0,90886.0,0.00211908]
[1741016475988,0.165038,90888.0,90886.0,0.00211908]
[1741016476145,4e-05,90905.0,90886.0,0.00211908]
[1741016476390,0.00428391,90887.0,90886.0,0.00211908]
[1741016476559,0.165009,90904.0,90890.0,0.165034]
[1741016476759,4e-05,90905.0,90895.0,0.165024]
[1741016476967,4e-05,90905.0,90896.0,0.16770695]
[1741016477169,4e-05,90905.0,90903.0,0.16501]
[1741016477581,4e-05,90905.0,90904.0,0.55834403]
[1741016477786,4e-05,90905.0,90904.0,0.87288488]
[1741016479797,4e-05,90905.0,90904.0,1.03789388]
[1741016480009,4e-05,90905.0,90904.0,0.55834403]
[1741016480370,4e-05,90905.0,90904.0,0.16770695]
[1741016480927,4e-05,90905.0,90904.0,0.33271595]
[1741016481125,4e-05,90905.0,90904.0,0.16770695]
[1741016481501,0.01729174,90905.0,90904.0,0.16770695]
[1741016481701,0.01729174,90905.0,90904.0,0.33271595]
[1741016481922,0.01729174,90905.0,90904.0,0.16770695]
[1741016482346,0.18229874,90905.0,90904.0,0.16804735]
[1741016482555,0.01729174,90905.0,90904.0,0.16804735]
[1741016482756,0.02157353,90905.0,90904.0,0.33305635]
[1741016482954,0.02157353,90905.0,90904.0,0.16804735]
[1741016483159,0.01729174,90905.0,90904.0,0.33305635]
[1741016483492,0.01829174,90905.0,90904.0,0.34005635]
[1741016483916,0.01729174,90905.0,90904.0,0.72369343]
[1741016484620,0.01729174,90905.0,90904.0,1.02369343]
[1741016485082,1.8e-07,90912.0,90911.0,0.164996]
[1741016485310,0.07618525,90984.0,90917.0,0.1]
[1741016485521,0.00192383,90983.0,90921.0,0.3]
[1741016485760,0.07618525,90984.0,90931.0,0.3]
[1741016485761,0.08460574,90984.0,90931.0,0.3]
[1741016485998,0.00192371,90983.0,90962.0,0.164902]
[1741016486247,0.00192371,90983.0,90957.0,0.16770695]
[1741016486473,0.0044622,90982.0,90957.0,0.16770695]
[1741016486688,0.001924,90981.0,90957.0,0.16770695]
[1741016486937,0.01454085,90980.0,90934.0,0.16770695]
[1741016487186,0.00192424,90979.0,90934.0,0.16770695]
[1741016487435,0.00192424,90979.0,90935.0,0.01454085]
[1741016487714,0.00192424,90979.0,90934.0,0.16770695]
[1741016487715,0.16494,90943.0,90934.0,0.16770695]
[1741016487891,0.00192443,90954.0,90934.0,0.16770695]
[1741016488129,0.3,90958.0,90934.0,0.16770695]
[1741016488336,0.0019243,90957.0,90934.0,0.16770695]
[1741016488581,0.00646683,90957.0,90934.0,0.16770695]
[1741016488817,0.00454253,90957.0,90934.0,0.16770695]
[1741016489090,0.00454253,90957.0,90935.0,0.219937]
[1741016489320,0.00493929,90957.0,90934.0,0.16770695]
[1741016489592,0.00493929,90957.0,90934.0,0.16870695]
[1741016489817,0.00493929,90957.0,90947.0,0.164931]
[1741016490121,0.00039676,90957.0,90934.0,0.16770695]
[1741016490314,0.00454253,90956.0,90934.0,0.17270695]
[1741016490539,0.00039676,90957.0,90934.0,0.17270695]
[1741016491468,0.00039676,90957.0,90905.0,0.49063708]
[1741016491469,0.00039676,90957.0,90956.0,0.164914]
[1741016491718,0.00039676,90957.0,90956.0,0.72325803]
[1741016491959,0.0176377,90957.0,90956.0,1.02325803]
[1741016492197,7e-07,90957.0,90956.0,1.03779888]
[1741016492428,4e-05,90981.0,90980.0,0.464871]
[1741016492657,4e-05,90981.0,90980.0,1.02321503]
[1741016492945,0.000159,90981.0,90980.0,1.03775588]
[1741016493407,0.000159,90981.0,90980.0,1.03675588]
[1741016494140,0.000159,90981.0,90980.0,1.04752532]
[1741016494393,0.000159,90981.0,90980.0,1.09362532]
[1741016494884,0.000199,90981.0,90980.0,1.10062532]
[1741016495114,0.0003694,90981.0,90980.0,1.10062532]
[1741016495329,0.0003694,90981.0,90980.0,1.09362532]
[1741016495737,0.0003694,90981.0,90980.0,1.10062532]
[1741016496248,0.0003694,90981.0,90980.0,1.09362532]
[1741016497091,0.0003694,90981.0,90980.0,1.10062532]
[1741016497681,0.0003694,90981.0,90980.0,1.07531503]
[1741016498235,0.0003694,90981.0,90980.0,1.08608531]
[1741016498437,0.0003694,90981.0,90980.0,1.07531503]
[1741016498868,0.0003694,90981.0,90980.0,0.56534403]
[1741016499067,0.0003694,90981.0,90980.0,0.17470695]
[1741016499068,0.1652384,90981.0,90980.0,0.17470695]
[1741016499300,0.0045982,90981.0,90980.0,0.17470695]
[1741016499678,0.0003694,90981.0,90980.0,0.17470695]
[1741016499880,0.0003694,90981.0,90899.0,1.08679714]
[1741016499881,0.1649,90964.0,90952.0,0.14070695]
[1741016500246,0.16492,90953.0,90952.0,0.14070695]
[1741016500473,0.00421312,90963.0,90943.0,0.14070695]
[1741016500667,0.00463443,90953.0,90943.0,0.14070695]
[1741016500895,0.3,90968.0,90943.0,0.14070695]
[1741016501082,0.00421312,90952.0,90943.0,0.14070695]
[1741016501309,0.219865,90965.0,90943.0,0.14070695]
[1741016501468,0.3,90968.0,90943.0,0.14070695]
[1741016501469,0.0112376,90964.0,90943.0,0.14070695]
[1741016501704,0.00204313,90968.0,90943.0,0.14070695]
[1741016501940,0.01724262,90959.0,90958.0,0.164911]
[1741016502122,0.01724262,90959.0,90958.0,0.69625503]
[1741016502462,0.00011896,90968.0,90958.0,0.53134403]
[1741016502876,0.00011896,90968.0,90967.0,0.164894]
[1741016503108,0.00011896,90968.0,90967.0,0.69623803]
[1741016504302,0.00011896,90968.0,90967.0,0.99623803]
[1741016504496,0.00011896,90968.0,90967.0,1.01077888]
[1741016505824,0.00011896,90968.0,90967.0,0.99623803]
[1741016506325,0.00011896,90968.0,90967.0,1.00323803]
[1741016506692,0.00011896,90968.0,90967.0,0.53134403]
[1741016506898,0.00011896,90968.0,90967.0,0.14070695]
[1741016507107,0.00011896,90968.0,90967.0,0.70323803]
[1741016507736,0.00011896,90968.0,90967.0,0.31260095]
[1741016508096,0.00011896,90968.0,90967.0,0.007]
[1741016508244,0.00011896,90968.0,90957.0,0.0003406]
[1741016508653,0.17590465,90968.0,90967.0,0.007]
[1741016508852,0.16501196,90968.0,90967.0,0.007]
[1741016509061,0.00427982,90968.0,90957.0,0.0003406]
[1741016509470,0.00427982,90968.0,90965.0,0.164896]